bitfinex-derivatives/quotes_SOLF0:USTF0_20260202
["timestamp","ask_amount","ask_price","bid_price","bid_amount"]
[1770003840413,3.78368565,97.24,97.16,9.2727]
[1770003840610,144.088,97.265,97.176,3.50037712]
[1770003840807,147.92938565,97.226,97.133,3.50037712]
[1770003841012,147.92938565,97.226,97.137,3.50037712]
[1770003841311,3.78368565,97.258,97.171,3.50037712]
[1770003841512,3.78368565,97.289,97.191,144.1963]
[1770003841718,3.78368565,97.289,97.195,144.1904]
[1770003842008,18.5116,97.338,97.16,50.11398971]
[1770003842009,147.88258565,97.258,97.169,9.2718]
[1770003842211,3.78368565,97.258,97.166,3.50037712]
[1770003842416,3.78368565,97.258,97.171,3.50037712]
[1770003842609,9.2641,97.251,97.171,3.50037712]
[1770003843008,50.11398971,97.29,97.113,144.3129]
[1770003843009,3.78368565,97.289,97.193,9.2696]
[1770003843211,3.78368565,97.289,97.209,144.1705]
[1770003843415,3.78368565,97.289,97.207,3.50037712]
[1770003843416,3.78368565,97.289,97.208,144.172]
[1770003843710,3.78368565,97.289,97.207,3.50037712]
[1770003843912,3.78368565,97.289,97.209,3.50037712]
[1770003844107,144.0116,97.317,97.214,9.2675]
[1770003844311,143.941,97.365,97.142,144.2694]
[1770003844312,144.0276,97.306,97.22,3.50037712]
[1770003844510,3.78368565,97.293,97.195,3.50037712]
[1770003844817,3.78368565,97.293,97.201,3.50037712]
[1770003844818,144.0703,97.277,97.201,3.50037712]
[1770003845116,143.9693,97.345,97.15,3.50037712]
[1770003845117,144.1154,97.247,97.15,3.50037712]
[1770003845416,3.78368565,97.246,97.158,3.50037712]
[1770003845613,144.147,97.225,97.158,3.50037712]
[1770003845915,144.1648,97.213,97.132,3.50037712]
[1770003846107,144.2034,97.187,97.104,3.50037712]
[1770003846305,144.2212,97.175,97.104,3.50037712]
[1770003846505,3.78368565,97.17,97.078,3.50037712]
[1770003846718,153.5065,97.167,97.081,3.50037712]
[1770003847116,144.2699,97.143,97.054,3.50037712]
[1770003847316,144.2913,97.128,97.026,144.4419]
[1770003847515,3.78368565,97.145,97.0,50.11398971]
[1770003847516,144.2906,97.129,97.027,3.50037712]
[1770003847721,144.263,97.147,97.053,3.76720196]
[1770003847906,3.72934581,97.153,97.059,144.3931]
[1770003848408,3.72934581,97.153,97.06,3.76720196]
[1770003848409,144.2556,97.152,97.06,3.76720196]
[1770003848609,144.291,97.128,97.031,3.76720196]
[1770003848809,144.2758,97.139,97.04,3.76720196]
[1770003849009,144.2859,97.132,97.04,3.76720196]
[1770003849711,144.3041,97.12,97.04,3.76720196]
[1770003849918,3.72934581,97.125,97.04,3.76720196]
[1770003850113,3.72934581,97.125,97.042,9.284]
[1770003850313,50.11398971,97.17,97.068,144.3791]
[1770003850314,3.72934581,97.156,97.068,144.3791]
[1770003850516,144.2514,97.155,97.065,3.76720196]
[1770003851018,3.72934581,97.133,97.037,3.76720196]
[1770003851217,3.72934581,97.133,97.047,3.76720196]
[1770003851414,3.72934581,97.133,97.05,144.4058]
[1770003851619,3.72934581,97.133,97.047,3.76720196]
[1770003852217,3.72934581,97.124,97.036,9.2845]
[1770003852419,3.72934581,97.124,97.027,3.76720196]
[1770003852624,3.72934581,97.124,97.031,3.76720196]
[1770003853119,3.72934581,97.15,97.062,148.15530196]
[1770003853515,50.11398971,97.17,97.059,3.76720196]
[1770003853516,3.72934581,97.142,97.059,3.76720196]
[1770003854017,3.72934581,97.142,97.06,153.6731]
[1770003854226,3.72934581,97.17,97.087,144.3517]
[1770003854521,3.72934581,97.162,97.059,3.76720196]
[1770003854719,3.72934581,97.158,97.059,3.76720196]
[1770003854922,144.1593,97.217,97.035,144.4287]
[1770003854923,3.72934581,97.133,97.035,144.4287]
[1770003855119,3.72934581,97.13,97.036,148.19450196]
[1770003855320,3.72934581,97.13,97.05,3.76720196]
[1770003856816,3.72934581,97.121,97.024,3.76720196]
[1770003857016,3.72934581,97.121,97.026,3.76720196]
[1770003857321,50.11398971,97.17,97.026,3.76720196]
[1770003857322,148.03314581,97.12,97.026,3.76720196]
[1770003857515,144.3222,97.107,97.026,3.76720196]
[1770003857718,144.3256,97.105,97.026,3.76720196]
[1770003858028,3.72934581,97.111,97.026,3.76720196]
[1770003858225,148.07074581,97.095,97.001,148.24600196]
[1770003858424,9.2792,97.093,97.004,144.4748]
[1770003858727,3.72934581,97.095,97.006,3.76720196]
[1770003859124,410.78,97.148,97.006,3.76720196]
[1770003859125,3.72934581,97.084,97.006,3.76720196]
[1770003859819,3.72934581,97.084,97.008,9.2872]
[1770003860222,410.78,97.148,97.008,9.2872]
[1770003860223,3.72934581,97.137,97.009,3.76720196]
[1770003860421,3.72934581,97.122,97.033,144.4317]
[1770003860624,3.72934581,97.121,97.03,144.4359]
[1770003860825,3.72934581,97.107,97.012,144.4629]
[1770003861423,3.72934581,97.107,97.022,144.4479]
[1770003861623,3.72934581,97.107,97.013,144.4619]
[1770003861823,3.72934581,97.107,97.022,144.4477]
[1770003862027,3.72934581,97.134,97.039,153.7068]
[1770003862221,3.72934581,97.132,97.057,144.3951]
[1770003862537,3.72934581,97.132,97.062,144.3879]
[1770003862728,3.72934581,97.132,97.062,153.6699]
[1770003863228,3.72934581,97.156,97.071,144.3755]
[1770003863527,3.72934581,97.156,96.984,144.5046]
[1770003863528,3.72934581,97.121,97.041,3.76720196]
[1770003864028,3.72934581,97.121,97.045,144.4133]
[1770003864224,3.72934581,97.146,97.064,144.3855]
[1770003864431,3.72934581,97.146,96.994,144.4895]
[1770003864432,3.72934581,97.146,97.066,148.14950196]
[1770003864927,3.72934581,97.146,97.076,144.3677]
[1770003865132,3.72934581,97.146,97.077,144.3664]
[1770003865524,3.72934581,97.146,97.066,3.76720196]
[1770003865726,3.72934581,97.146,97.071,144.3749]
[1770003866320,3.72934581,97.146,97.076,153.6477]
[1770003867634,3.72934581,97.176,97.089,9.2795]
[1770003868528,3.72934581,97.158,97.068,148.14700196]
[1770003868726,3.72934581,97.149,97.068,3.76720196]
[1770003868927,3.72934581,97.147,97.068,3.76720196]
[1770003869234,3.72934581,97.147,97.057,144.3955]
[1770003869235,3.72934581,97.119,97.041,3.76720196]
[1770003870034,3.72934581,97.139,97.053,3.76720196]
[1770003870529,12.72600668,97.14,97.053,3.76720196]
[1770003870530,144.2868,97.131,97.053,3.76720196]
[1770003870734,144.2901,97.129,97.053,3.76720196]
[1770003870931,3.72934581,97.127,97.053,3.76720196]
[1770003871232,12.72600668,97.14,97.02,12.72600668]
[1770003871233,144.3013,97.122,97.029,3.76720196]
[1770003871430,3.72934581,97.114,97.029,3.76720196]
[1770003871630,3.72934581,97.101,97.009,3.76720196]
[1770003871832,12.72600668,97.12,97.029,3.76720196]
[1770003872033,3.72934581,97.125,97.042,144.4184]
[1770003872233,3.72934581,97.125,97.056,9.2826]
[1770003872428,3.72934581,97.142,97.056,157.44770196]
[1770003872739,3.72934581,97.127,97.037,144.4255]
[1770003872937,9.2765,97.121,97.044,9.2837]
[1770003873538,9.2765,97.121,97.038,3.76720196]
[1770003874033,144.3242,97.106,97.038,3.76720196]
[1770003874239,144.3242,97.106,97.004,144.4753]
[1770003874240,3.72934581,97.103,97.02,3.76720196]
[1770003874437,3.72934581,97.127,97.035,3.76720196]
[1770003874628,9.276,97.126,97.039,3.76720196]
[1770003874832,3.72934581,97.125,97.039,3.76720196]
[1770003875337,3.72934581,97.125,97.054,9.2829]
[1770003875737,3.72934581,97.114,97.041,3.76720196]
[1770003876043,12.72600668,97.12,97.01,12.72600668]
[1770003876044,148.05404581,97.106,97.024,9.2857]
[1770003876432,3.72934581,97.106,97.029,3.76720196]
[1770003876834,144.3223,97.107,97.019,3.76720196]
[1770003877027,3.72934581,97.109,97.022,3.76720196]
[1770003877340,9.2752,97.135,97.048,3.76720196]
[1770003878339,9.2763,97.124,97.053,9.283]
[1770003878745,3.81769113,97.134,97.053,9.283]
[1770003879140,9.2755,97.131,97.053,9.283]
[1770003879334,3.81769113,97.159,97.073,148.01023762]
[1770003879936,12.72600668,97.16,97.073,148.01023762]
[1770003879937,144.2642,97.146,97.073,3.63793762]
[1770003880141,3.81769113,97.145,97.073,3.63793762]
[1770003880442,3.81769113,97.145,97.04,12.72600668]
[1770003880443,9.2752,97.134,97.05,3.63793762]
[1770003880645,3.81769113,97.124,97.05,3.63793762]
[1770003880833,3.81769113,97.124,96.977,396.14]
[1770003880834,3.81769113,97.139,97.064,144.3855]
[1770003881038,3.81769113,97.139,97.076,9.2807]
[1770003881738,9.2729,97.159,97.087,9.2796]
[1770003883239,9.2739,97.148,97.073,9.281]
[1770003883438,144.2445,97.16,97.073,9.281]
[1770003883439,3.81769113,97.147,97.073,9.281]
[1770003884445,9.2748,97.139,97.073,9.281]
[1770003885247,3.81769113,97.126,97.042,3.63793762]
[1770003885543,3.81769113,97.117,97.042,3.63793762]
[1770003885840,1.79232699,97.157,97.019,3.63793762]
[1770003885841,148.16289113,97.092,97.019,3.63793762]
[1770003886046,12.72600668,97.09,97.019,3.63793762]
[1770003886340,3.81769113,97.091,97.021,9.286]
[1770003886739,9.2795,97.089,97.019,3.63793762]
[1770003886938,144.3594,97.082,97.019,3.63793762]
[1770003887142,12.72600668,97.09,97.019,3.63793762]
[1770003887343,3.81769113,97.091,97.019,3.63793762]
[1770003888251,3.7394774,97.12,97.03,3.6447234]
[1770003888543,144.1636,97.214,97.053,3.6447234]
[1770003888544,3.7394774,97.139,97.053,3.6447234]
[1770003888748,3.7394774,97.139,97.065,9.2818]
[1770003888936,3.7394774,97.139,97.066,3.6447234]
[1770003889747,3.7394774,97.139,97.073,9.281]
[1770003890844,3.7394774,97.139,97.066,3.6447234]
[1770003891047,9.2749,97.138,97.066,3.6447234]
[1770003891440,3.7394774,97.137,97.066,3.6447234]
[1770003892046,3.7394774,97.156,97.075,3.6447234]
[1770003892247,3.7394774,97.137,97.05,3.6447234]
[1770003892550,3.7394774,97.085,97.005,3.6447234]
[1770003892845,3.7394774,97.072,96.976,144.5166]
[1770003893054,9.2833,97.049,96.969,144.5272]
[1770003893246,3.7394774,97.051,96.972,144.5227]
[1770003893453,3.7394774,97.075,96.989,144.4973]
[1770003893653,153.6552,97.073,96.973,144.5207]
[1770003894050,144.3973,97.057,96.955,144.5474]
[1770003894255,153.6799,97.057,96.973,9.2906]
[1770003894650,153.6799,97.057,96.974,3.6447234]
[1770003895161,9.2826,97.057,96.982,3.6447234]
[1770003895354,9.2814,97.07,96.982,3.6447234]
[1770003895753,153.6585,97.07,96.984,3.6447234]
[1770003895957,9.2814,97.07,96.984,3.6447234]
[1770003896155,9.2801,97.083,96.995,3.6447234]
[1770003896956,12.72600668,97.09,96.995,3.6447234]
[1770003896957,9.2811,97.073,96.997,9.2883]
[1770003897159,9.2811,97.073,96.995,3.6447234]
[1770003897353,3.7394774,97.056,96.97,3.6447234]
[1770003898359,9.2832,97.051,96.971,3.6447234]
[1770003898853,3.7394774,97.056,96.971,3.6447234]
[1770003899051,153.6844,97.054,96.971,3.6447234]
[1770003899249,3.7394774,97.113,97.02,3.6447234]
[1770003899455,3.7394774,97.113,97.029,9.2852]
[1770003899658,3.7394774,97.102,97.023,3.6447234]
[1770003899861,148.0692774,97.102,97.023,3.6447234]
[1770003900256,144.3564,97.084,96.995,3.6447234]
[1770003900451,144.3656,97.078,97.009,3.6447234]
[1770003900654,12.72600668,97.09,96.979,12.9347234]
[1770003900655,9.2822,97.061,96.979,12.9347234]
[1770003900857,3.7394774,97.049,96.979,3.6447234]
[1770003901053,144.4282,97.036,96.947,3.6447234]
[1770003901262,144.4325,97.033,96.961,3.6447234]
[1770003901560,148.2075774,97.009,96.928,3.6447234]
[1770003901759,9.2892,96.988,96.902,3.6447234]
[1770003902355,16.46548408,97.05,96.966,148.1764234]
[1770003902550,3.7394774,97.074,96.982,148.1522234]
[1770003902750,3.7394774,97.074,96.983,3.6447234]
[1770003902952,3.7394774,97.098,97.016,144.4569]
[1770003903154,3.7394774,97.126,97.04,144.421]
[1770003903357,3.7394774,97.11,97.016,144.4574]
[1770003903562,144.3342,97.099,97.0,12.72600668]
[1770003903862,3.7394774,97.1,97.005,144.4737]
[1770003904049,12.72600668,97.16,97.0,12.72600668]
[1770003904050,3.7394774,97.129,97.027,144.441]
[1770003904254,3.7394774,97.129,97.043,144.4171]
[1770003904450,3.7394774,97.113,97.01,144.4655]
[1770003904650,3.7394774,97.099,97.001,144.4785]
[1770003904849,3.7394774,97.099,97.003,144.4756]
[1770003905063,153.6255,97.091,96.996,144.4866]
[1770003905251,153.6255,97.091,96.997,3.6447234]
[1770003905457,144.3498,97.089,97.003,3.6447234]
[1770003905657,144.256,97.152,96.978,3.6447234]
[1770003905658,148.1203774,97.068,96.978,3.6447234]
[1770003905858,144.4217,97.041,96.947,3.6447234]
[1770003906057,3.7394774,97.069,96.974,3.6447234]
[1770003906262,12.72600668,97.07,96.985,144.5031]
[1770003906463,3.7394774,97.088,96.993,144.4914]
[1770003906659,144.4108,97.048,96.984,3.6447234]
[1770003906859,3.7394774,97.047,96.955,3.6447234]
[1770003907052,3.7394774,97.047,96.954,144.5486]
[1770003907053,9.282,97.063,96.975,3.6447234]
[1770003907258,148.1385774,97.056,96.975,3.6447234]
[1770003907461,144.4415,97.027,96.949,3.6447234]
[1770003907762,144.4415,97.027,96.93,12.72600668]
[1770003907763,3.7394774,97.045,96.959,3.85289401]
[1770003908057,3.7394774,97.045,96.965,3.85289401]
[1770003908461,9.2839,97.044,96.965,3.85289401]
[1770003908653,3.7394774,97.045,96.965,3.85289401]
[1770003909055,3.4980535,97.07,96.978,144.5129]
[1770003909258,3.4980535,97.094,97.016,3.85289401]
[1770003911061,144.3567,97.084,96.991,3.85289401]
[1770003911266,144.3253,97.105,97.012,3.85289401]
[1770003911456,3.4980535,97.11,97.032,3.85289401]
[1770003911661,147.8181535,97.109,97.032,3.85289401]
[1770003911856,147.8181535,97.109,96.964,144.5338]
[1770003911857,3.4980535,97.096,97.008,3.85289401]
[1770003912663,144.3642,97.079,97.008,3.85289401]
[1770003912862,3.4980535,97.069,96.977,3.85289401]
[1770003913067,3.4980535,97.069,96.923,144.5947]
[1770003913068,3.4980535,97.046,96.953,3.85289401]
[1770003913264,3.4980535,97.046,96.93,12.72600668]
[1770003913265,3.4980535,97.046,96.962,3.85289401]
[1770003913764,3.4980535,97.07,96.992,144.4929]
[1770003913964,12.72600668,97.16,96.95,12.72600668]
[1770003913965,144.3057,97.119,97.035,3.85289401]
[1770003914167,9.277,97.116,97.035,3.85289401]
[1770003914758,144.2228,97.174,97.007,3.85289401]
[1770003914759,3.4980535,97.101,97.007,3.85289401]
[1770003914969,3.4980535,97.101,96.923,348.6662]
[1770003914970,3.4980535,97.079,96.989,148.35039401]
[1770003915165,3.4980535,97.079,96.995,148.34029401]
[1770003915466,3.4980535,97.079,97.006,144.4712]
[1770003915671,3.4980535,97.106,97.015,144.4583]
[1770003916065,3.4980535,97.09,97.01,3.85289401]
[1770003916257,3.4980535,97.073,96.987,3.85289401]
[1770003916459,12.72600668,97.07,96.987,3.85289401]
[1770003916764,3.4980535,97.064,96.987,3.85289401]
[1770003917260,3.4980535,97.064,96.99,153.7837]
[1770003917460,400.76741361,97.247,97.016,3.85289401]
[1770003917461,3.4980535,97.095,97.016,3.85289401]
[1770003917666,3.4980535,97.095,97.024,144.4454]
[1770003918067,1.79272401,97.157,97.024,144.4454]
[1770003918068,3.4980535,97.116,97.024,144.4447]
[1770003918367,3.4980535,97.116,97.041,144.4198]
[1770003918666,3.4980535,97.1,97.008,144.468]
[1770003918872,3.4980535,97.1,97.01,144.4661]
[1770003919378,3.4980535,97.1,97.014,153.7465]
[1770003919667,3.4980535,97.1,97.032,144.4329]
[1770003919867,12.72600668,97.11,97.032,144.4329]
[1770003920068,144.2997,97.123,97.032,148.28579401]
[1770003920470,16.22406018,97.11,97.032,13.13779401]
[1770003921072,144.327,97.104,97.032,3.85289401]
[1770003921270,3.4980535,97.109,97.032,3.85289401]
[1770003921473,3.4980535,97.103,97.006,3.85289401]
[1770003921673,12.7766535,97.099,97.013,9.2868]
[1770003921873,3.4980535,97.098,97.013,9.2868]
[1770003922473,9.2791,97.094,97.013,9.2868]
[1770003922673,3.4980535,97.081,97.006,3.85289401]
[1770003923073,12.72600668,97.09,97.006,3.85289401]
[1770003923668,12.7760535,97.105,97.023,144.4469]
[1770003923879,3.4980535,97.129,97.043,144.4171]
[1770003924073,3.4980535,97.129,97.053,3.85289401]
[1770003924573,3.4980535,97.106,97.004,3.85289401]
[1770003924778,3.4980535,97.106,97.024,3.85289401]
[1770003925181,9.2783,97.103,97.025,9.2856]
[1770003925379,3.4980535,97.106,97.029,3.85289401]
[1770003925570,3.4980535,97.106,97.033,148.28379401]
[1770003925771,16.22406018,97.13,97.052,3.85289401]
[1770003926277,16.22406018,97.13,97.052,157.53859401]
[1770003926477,3.4980535,97.13,97.052,157.53859401]
[1770003926870,30.99,97.192,96.979,389.68]
[1770003926871,3.4980535,97.111,97.024,3.85289401]
[1770003927070,12.73504001,97.12,97.024,3.85289401]
[1770003927071,147.8174535,97.109,97.024,3.85289401]
[1770003927276,3.4980535,97.109,97.024,3.85289401]
[1770003927477,9.2767,97.119,97.037,3.85289401]
[1770003927780,3.4980535,97.133,97.05,144.4067]
[1770003928182,12.7734535,97.133,97.061,9.2821]
[1770003928379,3.4980535,97.133,97.061,9.2821]
[1770003928574,3.4980535,97.133,97.061,157.52459401]
[1770003928781,3.4980535,97.133,97.038,148.27679401]
[1770003928977,12.73504001,97.14,97.058,3.85289401]
[1770003929279,12.73504001,97.14,97.069,9.2814]
[1770003929680,12.73504001,97.14,97.061,3.85289401]
[1770003929880,9.2748,97.139,97.063,3.85289401]
[1770003930278,12.73504001,97.14,97.063,3.85289401]
[1770003930279,3.4980535,97.138,97.063,3.85289401]
[1770003930680,9.2754,97.132,97.063,3.85289401]
[1770003930883,144.3314,97.101,97.039,3.85289401]
[1770003931076,12.73504001,97.1,97.015,3.85289401]
[1770003931286,12.73504001,97.1,97.032,9.2849]
[1770003931483,12.73504001,97.12,97.046,144.4127]
[1770003931683,3.4980535,97.134,97.05,3.85289401]
[1770003931979,3.4980535,97.134,96.983,144.5056]
[1770003931980,3.4980535,97.134,97.072,9.2811]
[1770003932173,3.4980535,97.134,97.057,3.85289401]
[1770003932578,3.4980535,97.134,97.065,3.85289401]
[1770003933086,12.7733535,97.134,97.065,3.85289401]
[1770003933282,12.73504001,97.14,97.065,3.85289401]
[1770003933493,3.4980535,97.154,97.065,3.85289401]
[1770003933792,3.4980535,97.145,97.066,9.2817]
[1770003934186,3.4980535,97.145,97.078,144.365]
[1770003934387,3.4980535,97.145,97.006,388.68]
[1770003934388,3.4980535,97.169,97.089,3.85289401]
[1770003934590,3.4980535,97.169,97.06,12.73504001]
[1770003934591,3.4980535,97.169,97.096,144.3376]
[1770003934791,3.4980535,97.169,97.091,3.85289401]
[1770003934792,3.4980535,97.169,97.099,153.6119]
[1770003934990,3.4980535,97.169,97.099,9.2786]
[1770003935688,16.23309351,97.16,97.08,9.2803]
[1770003935995,144.2846,97.133,97.054,3.85289401]
[1770003936591,12.73504001,97.12,97.054,3.85289401]
[1770003937387,3.4980535,97.089,97.004,3.85289401]
[1770003937585,12.73504001,97.08,97.004,3.85289401]
[1770003937792,12.73504001,97.08,96.938,43.52095705]
[1770003937793,144.3796,97.069,96.97,3.67337637]
[1770003937983,9.2816,97.067,96.988,3.67337637]
[1770003938695,3.65687885,97.076,96.99,3.67337637]
[1770003938993,3.65687885,97.076,97.0,3.67337637]
[1770003939595,30.99,97.148,97.007,12.96067637]
[1770003939596,9.2795,97.089,97.007,12.96067637]
[1770003939795,3.65687885,97.1,97.027,3.67337637]
[1770003940093,3.65687885,97.1,97.0,12.73504001]
[1770003940094,3.65687885,97.1,97.031,144.4349]
[1770003940296,3.65687885,97.1,97.033,9.2848]
[1770003940691,3.65687885,97.1,97.029,3.67337637]
[1770003941090,12.73504001,97.12,97.03,3.67337637]
[1770003941496,410.98,97.149,97.008,144.4688]
[1770003941497,3.65687885,97.093,97.008,144.4688]
[1770003941688,3.65687885,97.093,97.009,3.67337637]
[1770003941991,3.65687885,97.093,97.019,144.4528]
[1770003942198,3.65687885,97.093,97.022,144.4478]
[1770003942496,9.2793,97.092,97.021,9.286]
[1770003942895,9.2793,97.092,96.97,387.26]
[1770003942896,144.405,97.052,96.968,3.67337637]
[1770003943094,3.65687885,97.055,96.97,3.67337637]
[1770003943293,144.4377,97.03,96.944,3.67337637]
[1770003943596,9.2848,97.034,96.946,3.67337637]
[1770003943897,9.2848,97.034,96.947,3.67337637]
[1770003944091,9.2852,97.03,96.947,3.67337637]
[1770003944291,144.3986,97.056,96.968,3.67337637]
[1770003944597,144.4217,97.041,96.968,3.67337637]
[1770003944797,3.65687885,97.053,96.968,3.67337637]
[1770003944986,3.65687885,97.053,96.94,12.73504001]
[1770003944987,3.65687885,97.053,96.975,148.19077637]
[1770003945188,3.65687885,97.053,96.98,144.511]
[1770003945394,144.361,97.081,96.993,9.2886]
[1770003945395,9.2812,97.072,96.993,9.2886]
[1770003945791,3.65687885,97.079,96.993,9.2886]
[1770003945997,9.2806,97.078,96.993,12.96197637]
[1770003946197,3.65687885,97.079,97.005,9.2875]
[1770003946394,3.65687885,97.079,96.934,144.5793]
[1770003946395,3.65687885,97.105,97.019,144.4522]
[1770003946692,144.3351,97.099,97.019,9.2862]
[1770003946894,3.65687885,97.103,97.019,9.2862]
[1770003946895,3.65687885,97.103,97.019,157.36876753]
[1770003947198,3.65687885,97.103,97.035,9.2846]
[1770003947498,3.64037348,97.129,97.033,3.62996753]
[1770003948095,9.2762,97.124,97.043,9.2838]
[1770003948891,3.64037348,97.129,97.061,144.3892]
[1770003949097,12.73504001,97.15,97.062,148.01776753]
[1770003949291,12.73504001,97.15,97.074,144.3711]
[1770003949499,3.64037348,97.147,97.063,3.62996753]
[1770003949701,3.64037348,97.129,97.04,144.4213]
[1770003950000,3.64037348,97.129,97.063,144.3862]
[1770003950201,3.64037348,97.129,97.02,12.73504001]
[1770003950202,3.64037348,97.129,97.052,3.62996753]
[1770003950401,3.64037348,97.129,97.054,148.03076753]
[1770003951002,3.64037348,97.207,97.091,3.62996753]
[1770003951301,3.64037348,97.207,97.138,144.2755]
[1770003951603,3.64037348,97.239,97.154,153.5244]
[1770003951798,3.64037348,97.239,97.179,144.2151]
[1770003952000,12.73504001,97.28,97.201,144.1811]
[1770003952200,3.64037348,97.291,97.207,144.1728]
[1770003952393,3.64037348,97.239,97.154,144.252]
[1770003952594,3.64037348,97.239,97.09,144.3465]
[1770003952595,12.73504001,97.24,97.163,144.2385]
[1770003952902,3.64037348,97.259,97.172,144.2255]
[1770003953202,3.64037348,97.259,97.172,153.497]
[1770003953398,3.64037348,97.259,97.182,144.2101]
[1770003953904,3.64037348,97.259,97.14,12.73504001]
[1770003953905,144.0989,97.258,97.165,3.62996753]
[1770003954301,147.77777348,97.232,97.14,3.62996753]
[1770003954506,3.64037348,97.219,97.14,3.62996753]
[1770003954705,12.73504001,97.24,97.151,144.2555]
[1770003955008,12.73504001,97.24,97.166,144.2337]
[1770003955204,12.73504001,97.24,97.152,3.62996753]
[1770003955205,3.64037348,97.245,97.178,144.2158]
[1770003955608,12.73504001,97.26,97.178,144.2158]
[1770003955911,3.64037348,97.259,97.171,3.62996753]
[1770003956401,147.73957348,97.258,97.171,3.62996753]
[1770003956808,144.1221,97.242,97.171,3.62996753]
[1770003957007,144.1351,97.233,97.145,3.62996753]
[1770003957206,3.64037348,97.249,97.16,3.62996753]
[1770003957411,12.73504001,97.27,97.184,144.2073]
[1770003958011,11.78667458,97.468,97.16,12.73504001]
[1770003958012,3.64037348,97.323,97.229,144.14]
[1770003958204,3.64037348,97.321,97.258,144.0969]
[1770003958514,3.64037348,97.321,97.264,144.0892]
[1770003958713,3.64037348,97.348,97.257,144.0981]
[1770003958914,3.64037348,97.339,97.251,3.62996753]
[1770003959213,143.9799,97.338,97.251,3.62996753]
[1770003959607,3.64037348,97.329,97.241,9.265]
[1770003959804,3.64037348,97.329,97.249,3.62996753]
[1770003960008,3.64037348,97.329,97.253,153.3679]
[1770003960217,144.011,97.317,97.224,3.62996753]
[1770003960414,144.0489,97.292,97.203,3.62996753]
[1770003960606,3.64037348,97.298,97.21,3.62996753]
[1770003960913,143.9766,97.341,97.249,3.62996753]
[1770003961114,143.9766,97.341,97.16,12.73504001]
[1770003961115,3.64037348,97.375,97.295,3.62996753]
[1770003961311,3.64037348,97.403,97.326,143.9973]
[1770003961617,3.64037348,97.429,97.333,153.2429]
[1770003961808,3.64037348,97.429,97.323,3.62996753]
[1770003961809,3.64037348,97.429,97.358,143.9486]
[1770003962007,3.64037348,97.429,97.339,3.62996753]
[1770003962205,12.73504001,97.45,97.369,3.62996753]
[1770003962414,143.7745,97.477,97.38,143.9167]
[1770003962618,3.64037348,97.48,97.399,143.8894]
[1770003962811,12.73504001,97.51,97.415,143.8655]
[1770003963115,3.64037348,97.505,97.424,143.8523]
[1770003963316,3.64037348,97.532,97.467,143.7882]
[1770003963516,143.658,97.556,97.455,3.62996753]
[1770003963814,143.6859,97.537,97.455,3.62996753]
[1770003964117,143.7337,97.505,97.427,3.62996753]
[1770003964323,143.6713,97.547,97.452,3.62996753]
[1770003964615,12.73504001,97.58,97.478,3.62996753]
[1770003964616,143.6361,97.571,97.478,3.62996753]
[1770003964812,143.657,97.557,97.488,3.62996753]
[1770003965012,143.6672,97.55,97.454,143.8076]
[1770003965217,143.7393,97.501,97.423,3.62996753]
[1770003965413,49.72561747,97.56,97.395,3.62996753]
[1770003965414,143.7841,97.471,97.395,3.62996753]
[1770003965615,143.7977,97.462,97.395,3.62996753]
[1770003965814,143.8273,97.442,97.354,3.62996753]
[1770003966015,143.8054,97.456,97.374,3.62996753]
[1770003966316,18.4687,97.565,97.315,569.96]
[1770003966317,3.64037348,97.497,97.408,147.50526753]
[1770003966516,143.7525,97.492,97.408,3.62996753]
[1770003966716,143.7833,97.471,97.381,3.62996753]
[1770003966918,143.8373,97.435,97.353,3.62996753]
[1770003967113,143.832,97.438,97.353,3.62996753]
[1770003967319,3.64037348,97.445,97.353,3.62996753]
[1770003967515,143.8412,97.432,97.353,3.62996753]
[1770003967720,143.8405,97.433,97.353,3.62996753]
[1770003968227,143.9239,97.376,97.297,3.57632861]
[1770003968416,143.9239,97.376,97.26,49.72561747]
[1770003968417,143.8912,97.398,97.303,3.57632861]
[1770003968619,143.9303,97.372,97.28,3.57632861]
[1770003968814,49.72561747,97.41,97.304,3.57632861]
[1770003968815,143.9074,97.387,97.304,3.57632861]
[1770003969124,143.9241,97.376,97.304,3.57632861]
[1770003969321,3.72001125,97.373,97.266,3.57632861]
[1770003969519,3.72001125,97.373,97.286,144.0564]
[1770003969721,143.8939,97.396,97.298,144.038]
[1770003969914,143.9135,97.383,97.294,3.57632861]
[1770003970118,143.8643,97.417,97.316,144.0109]
[1770003970314,143.8283,97.441,97.346,143.9667]
[1770003970515,143.8421,97.432,97.335,143.983]